bitfinex-derivatives/quotes_ETHF0:USTF0_20250501
["timestamp","ask_amount","ask_price","bid_price","bid_amount"]
[1746116420317,1.07696,1856.5,1856.4,6.50127]
[1746116420709,2.82816,1856.5,1856.4,6.50127]
[1746116421014,1.07697,1856.4,1856.3,1.07698]
[1746116421205,2.82817,1856.4,1856.3,1.07698]
[1746116422114,1.0772,1856.0,1855.9,10.81077262]
[1746116422416,1.0772,1856.0,1855.9,7.18777262]
[1746116422811,4.6394,1856.0,1855.9,7.18777262]
[1746116423208,9.6394,1856.0,1855.9,7.18777262]
[1746116423518,4.6394,1856.0,1855.9,7.18777262]
[1746116425115,9.6394,1856.0,1855.9,7.18777262]
[1746116426016,13.66935296,1856.0,1855.9,0.86173121]
[1746116426216,13.66935296,1856.0,1855.9,1.21e-06]
[1746116427522,1.07726,1855.9,1855.8,7.83867009]
[1746116427721,7.72716,1855.9,1855.8,4.73362009]
[1746116428021,12.72716,1855.9,1855.8,4.73362009]
[1746116428211,12.72716,1855.9,1855.8,1.87117009]
[1746116428413,12.72716,1855.9,1855.8,1.15317009]
[1746116428615,1.07738,1855.7,1855.6,14.19605185]
[1746116428814,4.28518,1855.7,1855.6,14.19605185]
[1746116429717,4.28518,1855.7,1855.2,8.23556]
[1746116429718,1.07761,1855.3,1855.2,8.23556]
[1746116435332,1.07761,1855.3,1855.2,7.1579]
[1746116435829,1.07761,1855.3,1855.2,8.23557]
[1746116437335,1.07761,1855.3,1855.2,7.1579]
[1746116437538,1.07761,1855.3,1855.2,3.619]
[1746116437833,2.83531,1855.3,1855.2,3.619]
[1746116438538,2.83531,1855.3,1855.2,4.69667]
[1746116439537,2.93109,1855.4,1855.3,1.07761]
[1746116439837,2.93109,1855.4,1855.3,4.67561]
[1746116441138,2.93109,1855.4,1855.3,3.598]
[1746116442740,1.07761,1855.3,1855.2,3.619]
[1746116442937,4.56771,1855.3,1855.2,3.619]
[1746116443439,4.56771,1855.3,1855.2,4.69667]
[1746116443743,2.90571,1855.3,1855.2,6.50187]
[1746116443943,1.07761,1855.3,1855.2,6.50187]
[1746116444144,10.42672,1855.5,1855.4,1.07755]
[1746116444145,7.90197,1855.5,1855.4,1.07755]
[1746116444642,7.90197,1855.5,1855.4,4.59325]
[1746116444845,6.07077,1855.5,1855.4,4.59325]
[1746116445043,4.28537,1855.5,1855.4,4.59325]
[1746116447139,1.07757,1855.5,1855.4,4.59325]
[1746116447542,1.07757,1855.5,1855.4,6.44665]
[1746116448235,1.7854,1855.6,1855.4,5.3691]
[1746116448442,1.07742,1855.7,1855.6,1.07738]
[1746116448845,1.07742,1855.7,1855.6,2.93078]
[1746116449152,3.2078,1855.8,1855.7,1.07738]
[1746116449348,3.2078,1855.8,1855.7,4.64728]
[1746116449851,4.28512,1855.8,1855.7,4.64728]
[1746116450152,3.2078,1855.8,1855.7,4.64728]
[1746116450343,4.28512,1855.8,1855.7,3.5699]
[1746116451249,7.70352,1855.8,1855.7,3.5699]
[1746116451551,5.99092,1855.8,1855.7,4.64728]
[1746116453451,3.2078,1855.8,1855.7,4.64728]
[1746116454960,4.28512,1855.8,1855.7,4.64728]
[1746116455657,2.85381,1855.9,1855.8,1.07732]
[1746116456454,1.07719,1856.1,1856.0,1.07715]
[1746116456752,1.07713,1856.2,1856.1,1.07715]
[1746116457152,6.06137,1856.3,1856.2,1.07709]
[1746116457451,3.2078,1856.3,1856.2,1.07709]
[1746116457847,4.28483,1856.3,1856.2,2.82069]
[1746116458453,1.07703,1856.3,1856.2,2.82069]
[1746116460064,2.85351,1856.4,1856.3,1.07703]
[1746116460263,2.85351,1856.4,1856.3,1.7292]
[1746116460770,2.85351,1856.4,1856.3,2.80623]
[1746116462066,1.7765,1856.4,1856.3,2.80623]
[1746116462370,2.85347,1856.4,1856.3,2.80623]
[1746116462568,1.7765,1856.4,1856.3,2.80623]
[1746116462771,6.01286,1856.5,1856.3,2.80623]
[1746116462772,3.2078,1856.5,1856.4,1.07697]
[1746116462970,3.2078,1856.5,1856.4,2.73397]
[1746116463164,3.2078,1856.5,1856.4,6.34897]
[1746116463364,3.6033,1856.7,1856.4,5.272]
[1746116463673,1.07675,1856.8,1856.7,1.0768]
[1746116463863,2.86813,1856.9,1856.8,1.07674]
[1746116465172,1.07674,1856.8,1856.7,2.73376]
[1746116465473,2.74994,1856.8,1856.7,2.73376]
[1746116465865,2.74994,1856.8,1856.7,1.07676]
[1746116466372,1.07678,1856.8,1856.7,1.07676]
[1746116466770,1.07686,1856.6,1856.5,2.77787]
[1746116467468,2.75006,1856.6,1856.5,2.77787]
[1746116468677,1.07691,1856.5,1856.4,3.615]
[1746116468877,4.68201,1856.5,1856.4,3.615]
[1746116469077,4.68201,1856.5,1856.4,4.69197]
[1746116470880,4.68201,1856.5,1856.4,3.615]
[1746116471876,4.68201,1856.5,1856.4,4.69197]
[1746116472080,1.07689,1856.6,1856.5,1.07691]
[1746116472278,1.07689,1856.6,1856.5,6.46081]
[1746116472578,4.71885,1856.7,1856.6,1.07686]
[1746116472776,4.71885,1856.7,1856.6,1.8267]
[1746116473279,4.71885,1856.7,1856.6,2.90356]
[1746116473683,4.71885,1856.7,1856.6,1.07686]
[1746116473882,1.07686,1856.6,1856.5,4.63407]
[1746116474180,2.87296,1856.6,1856.5,4.63407]
[1746116474581,1.7645,1856.8,1856.7,1.0768]
[1746116474880,2.84125,1856.8,1856.7,1.0768]
[1746116475377,2.87283,1856.9,1856.8,1.07674]
[1746116476582,2.87283,1856.9,1856.8,2.81174]
[1746116477084,2.87283,1856.9,1856.8,4.49844]
[1746116477983,7.07578,1857.1,1856.8,4.49844]
[1746116477984,9.97329197,1857.4,1857.3,1.07645]
[1746116478181,8.89686197,1857.4,1857.3,1.07645]
[1746116478578,9.97325197,1857.4,1857.3,1.07645]
[1746116478787,9.97325197,1857.4,1857.3,2.76315]
[1746116479085,1.07645,1857.3,1857.2,2.75918]
[1746116479286,2.73215,1857.3,1857.2,2.75918]
[1746116479485,2.73215,1857.3,1857.2,4.44588]
[1746116479983,1.6557,1857.3,1857.2,4.44588]
[1746116480180,1.07643,1857.4,1857.2,4.44588]
[1746116480181,1.07643,1857.4,1857.2,3.3694]
[1746116480384,1.07643,1857.4,1857.3,2.83615]
[1746116480985,2.83653,1857.4,1857.3,2.83615]
[1746116481174,2.83653,1857.4,1857.3,1.07645]
[1746116482186,2.83653,1857.4,1857.3,2.83615]
[1746116483489,3.57958485,1857.8,1857.5,2.69083]
[1746116483787,8.84478553,1858.2,1857.9,1.0761]
[1746116483992,1.676,1858.3,1858.2,1.07593]
[1746116484290,8.05205861,1858.5,1858.4,1.07581]
[1746116485281,6.97630861,1858.5,1858.4,1.07581]
[1746116485878,5.22300861,1858.5,1858.4,1.07581]
[1746116487190,3.54700861,1858.5,1858.4,4.28361]
[1746116489394,2.77106,1858.7,1858.6,1.0757]
[1746116489590,1.6954,1858.7,1858.6,1.0757]
[1746116490491,1.6954,1858.7,1858.6,4.2835]
[1746116491392,7.90042,1859.1,1859.0,1.07547]
[1746116494495,4.69262,1859.1,1859.0,1.07547]
[1746116494800,3.6172,1859.1,1859.0,1.07547]
[1746116495701,1.8079,1859.1,1859.0,1.07547]
[1746116495998,1.6512,1859.4,1859.3,1.07529]
[1746116496192,3.4348,1859.4,1859.2,6.45291]
[1746116496388,4.51008,1859.4,1859.3,1.07529]
[1746116496800,1.07529,1859.3,1859.2,4.68131]
[1746116496995,1.7836,1859.3,1859.2,4.68131]
[1746116498099,2.85889,1859.3,1859.2,4.68131]
[1746116498400,1.7836,1859.3,1859.2,4.68131]
[1746116499098,5.0097,1859.6,1859.5,1.07518]
[1746116499398,5.89481,1860.2,1859.8,1.07498]
[1746116499591,1.0749,1860.0,1859.8,4.67998]
[1746116499899,1.0749,1860.0,1859.9,3.2078]
[1746116500303,2.68679,1860.3,1859.9,3.2078]
[1746116500304,1.07488,1860.1,1859.9,4.28271]
[1746116500593,2.68679,1860.3,1859.9,4.28271]
[1746116500798,1.07489,1860.0,1859.9,4.28271]
[1746116500991,1.07487,1860.1,1859.9,4.28271]
[1746116501398,2.68694,1860.2,1859.8,3.605]
[1746116501588,1.07495,1859.9,1859.8,4.68]
[1746116501795,1.07495,1859.9,1859.8,3.605]
[1746116502401,5.0,1859.9,1859.6,1.07511]
[1746116502604,1.07508,1859.7,1859.6,1.07511]
[1746116503905,1.07507,1859.7,1859.6,1.07506]
[1746116504604,1.07512,1859.6,1859.5,7.88795]
[1746116504808,1.07512,1859.6,1859.5,6.8128]
[1746116505197,3.414,1859.8,1859.5,6.8128]
[1746116505495,1.07509,1859.7,1859.6,1.07509]
[1746116505802,1.07507,1859.7,1859.6,1.07507]
[1746116506705,1.07512,1859.6,1859.5,7.88793]
[1746116507105,1.0751,1859.7,1859.6,1.07509]
[1746116507405,1.07512,1859.6,1859.5,7.88794]
[1746116507597,1.07512,1859.7,1859.6,1.0751]
[1746116508299,1.07512,1859.6,1859.5,7.88792]
[1746116508607,1.07511,1859.7,1859.6,1.07508]
[1746116509606,1.07512,1859.6,1859.5,7.88794]
[1746116510001,1.07512,1859.6,1859.5,6.8128]
[1746116510201,1.07512,1859.6,1859.5,7.88798]
[1746116510408,1.07512,1859.6,1859.5,6.8128]
[1746116510609,1.07512,1859.6,1859.5,7.88798]
[1746116513505,1.07512,1859.6,1859.5,6.8128]
[1746116513706,1.07512,1859.6,1859.5,7.88798]
[1746116514707,1.07512,1859.6,1859.5,6.8128]
[1746116515407,1.07523,1859.4,1859.3,3.2078]
[1746116515603,1.07523,1859.4,1859.3,4.28309]
[1746116519507,1.07523,1859.4,1859.3,6.03829]
[1746116521216,1.07523,1859.4,1859.3,1.07529]
[1746116521512,1.07529,1859.3,1859.2,7.88313]
[1746116521718,1.07529,1859.3,1859.2,9.63833]
[1746116522511,1.07511,1859.7,1859.2,13.563]
[1746116522707,1.07512,1859.6,1859.5,4.28293]
[1746116522908,2.86192,1859.6,1859.5,7.75643]
[1746116524813,2.86192,1859.6,1859.5,6.6813]
[1746116525023,2.86192,1859.6,1859.5,7.75648]
[1746116528020,2.86192,1859.6,1859.5,6.6813]
[1746116528217,1.07529,1859.4,1859.3,3.2078]
[1746116528819,4.52919,1859.4,1859.3,3.2078]
[1746116529021,1.07529,1859.3,1859.2,1.7861]
[1746116529221,2.76789,1859.3,1859.2,2.86145]
[1746116529620,2.76789,1859.3,1859.2,4.59275]
[1746116530025,1.07529,1859.3,1859.2,4.59275]
[1746116532027,1.07529,1859.3,1859.2,2.86145]
[1746116532227,1.07529,1859.3,1859.2,4.50945]
[1746116532426,1.07529,1859.3,1859.2,3.4341]
[1746116532627,1.07529,1859.3,1859.2,4.50945]
[1746116533029,1.07529,1859.3,1859.2,3.4341]
[1746116533232,1.07529,1859.3,1859.2,4.50945]
[1746116534530,1.07529,1859.3,1859.2,3.4341]
[1746116534835,1.07529,1859.3,1859.2,2.86145]
[1746116535032,2.85029,1859.3,1859.2,1.7861]
[1746116535233,2.85029,1859.3,1859.2,2.86145]
[1746116537443,2.85029,1859.3,1859.2,1.7861]
[1746116537939,2.85029,1859.3,1859.2,2.86145]
[1746116538639,2.85029,1859.3,1859.2,1.7861]
[1746116539033,1.07535,1859.2,1859.1,7.88317]
[1746116539234,1.07547,1859.0,1858.9,13.81629]
[1746116539730,1.07547,1859.0,1858.9,15.55529]
[1746116541433,1.07547,1859.0,1858.9,15.55532]
[1746116541634,2.77987,1859.0,1858.9,15.55532]
[1746116541933,2.77987,1859.0,1858.9,14.4798]
[1746116542440,4.52767,1859.0,1858.9,12.7408]
[1746116543844,4.52767,1859.0,1858.9,13.81632]
[1746116544343,4.52767,1859.0,1858.9,15.58882]
[1746116544535,4.52767,1859.0,1858.9,9.65682]
[1746116545540,1.07543,1859.1,1859.0,1.07547]
[1746116545743,1.07541,1859.2,1859.1,1.07538]
[1746116545942,2.84711,1859.2,1859.1,6.01298]
[1746116546142,1.07541,1859.2,1859.1,6.01298]
[1746116546443,1.07533,1859.3,1859.2,1.07529]
[1746116546643,1.07533,1859.3,1859.2,4.61999]
[1746116547337,2.88503,1859.3,1859.2,3.5447]
[1746116547639,1.07535,1859.2,1859.1,4.9376]
[1746116547945,1.07547,1859.0,1858.9,3.2078]
[1746116548144,1.07545,1859.1,1859.0,1.07543]
[1746116548337,1.07545,1859.1,1859.0,6.36483]
[1746116549038,3.4802,1859.2,1859.0,6.36483]
[1746116549245,2.88509,1859.2,1859.1,6.05901]
[1746116551147,1.07539,1859.2,1859.1,6.05901]
[1746116551338,1.07534,1859.3,1859.2,1.0753]
[1746116551538,1.07534,1859.3,1859.2,2.7824]
[1746116552245,2.83364,1859.3,1859.2,2.78245]
[1746116552640,2.83364,1859.3,1859.2,1.69649564]
[1746116552835,2.83364,1859.3,1859.2,2.77184564]
[1746116553047,2.83364,1859.3,1859.2,1.69649564]
[1746116553245,2.83364,1859.3,1859.2,2.77184564]
[1746116553747,2.83364,1859.3,1859.2,1.69649564]
[1746116553947,2.83364,1859.3,1859.2,2.77184564]
[1746116554444,1.07535,1859.2,1859.1,4.28321]
[1746116554650,2.82805,1859.2,1859.1,4.28321]
[1746116555149,2.82805,1859.2,1859.1,3.2078]
[1746116555445,2.82805,1859.2,1859.1,4.28321]
[1746116555843,2.82805,1859.2,1859.1,3.2078]
[1746116556949,2.82805,1859.2,1859.1,4.28321]
[1746116557148,1.07535,1859.2,1859.1,6.10831]
[1746116557350,1.07534,1859.3,1859.2,1.07531]
[1746116557646,2.79498,1859.4,1859.3,1.07529]
[1746116557847,2.79498,1859.4,1859.3,2.75139]
[1746116558047,2.79498,1859.4,1859.3,3.5012]
[1746116558451,2.79498,1859.4,1859.3,7.78429]
[1746116559550,2.79498,1859.4,1859.3,6.709]
[1746116559752,2.79498,1859.4,1859.3,7.78429]
[1746116560144,1.07528,1859.4,1859.3,7.78429]
[1746116560452,1.07528,1859.4,1859.3,6.709]
[1746116560749,1.07529,1859.3,1859.2,1.8191]
[1746116561150,2.90229,1859.3,1859.2,1.8191]
[1746116561651,1.07529,1859.3,1859.2,2.89445]
[1746116561850,1.07529,1859.3,1859.2,4.71275]
[1746116562049,2.76867,1859.4,1859.3,1.07529]
[1746116562251,2.76867,1859.4,1859.3,6.10139]
[1746116564249,1.0752,1859.5,1859.4,1.07515]
[1746116564450,1.0752,1859.5,1859.4,4.57645]
[1746116564651,1.07516,1859.6,1859.5,1.07512]
[1746116564850,4.63991,1859.7,1859.6,1.07512]
[1746116565049,1.07512,1859.6,1859.5,6.10124]
[1746116565347,1.07523,1859.4,1858.0,29.03459372]
[1746116565555,1.07547,1859.0,1858.8,13.83194502]
[1746116565858,1.07547,1859.0,1858.8,10.62414502]
[1746116566245,1.07547,1859.0,1858.8,15.62274502]
[1746116566541,1.07547,1859.0,1858.8,16.69830502]
[1746116566957,1.07547,1859.0,1858.8,15.62274502]
[1746116567157,2.87467,1859.0,1858.8,15.62274502]
[1746116569353,2.87467,1859.0,1858.8,16.69832502]
[1746116569558,1.07552,1858.9,1858.8,6.07418]
[1746116569854,2.85642,1858.9,1858.8,6.07418]
[1746116572259,2.85642,1858.9,1858.8,4.9986]
[1746116572455,4.29922,1858.9,1858.8,4.9986]
[1746116572660,4.29922,1858.9,1858.8,3.2078]
[1746116572956,1.07558,1858.8,1858.7,3.597]
[1746116573258,2.78248,1858.8,1858.7,7.88044]
[1746116575856,2.87472,1859.0,1858.9,1.07552]
[1746116576161,2.67372,1859.0,1858.9,1.07552]
[1746116576660,2.67372,1859.0,1858.9,2.52172]
[1746116577060,2.67372,1859.0,1858.9,4.05462]
[1746116577255,1.07546,1859.1,1859.0,1.07547]
[1746116577560,1.07546,1859.1,1859.0,2.72447]
[1746116580556,1.07546,1859.1,1858.9,12.1189]
[1746116580557,1.07547,1859.0,1858.9,9.1398]
[1746116580761,2.72387,1859.0,1858.9,5.932]
[1746116581064,2.72387,1859.0,1858.9,10.21532]
[1746116581264,2.72387,1859.0,1858.9,9.1398]
[1746116581558,2.72387,1859.0,1858.9,10.21532]
[1746116582358,1.478,1859.2,1858.9,11.82852]
[1746116582561,2.72381,1859.2,1859.1,1.07536]
[1746116583064,2.72381,1859.2,1859.0,4.6756]
[1746116583065,1.07541,1859.1,1859.0,5.75103]
[1746116587966,1.07541,1859.1,1859.0,1.4251]
[1746116588164,2.56241,1859.1,1859.0,1.4251]
[1746116588770,1.07547,1859.0,1858.9,10.21528]
[1746116588971,2.73217,1859.0,1858.9,10.21528]
[1746116590867,1.07564,1858.7,1858.6,7.17475255]
[1746116591264,1.07564,1858.7,1858.6,8.25045255]
[1746116591768,1.07564,1858.7,1858.6,11.34245255]
[1746116591969,2.68284,1858.7,1858.6,13.47455255]
[1746116592266,2.68284,1858.7,1858.6,12.93955255]
[1746116593464,2.68284,1858.7,1858.6,5.7648]
[1746116595273,2.50057,1858.9,1858.8,1.07558]
[1746116595473,2.68868,1859.0,1858.9,1.07552]
[1746116595474,1.07549,1859.0,1858.9,1.07552]
[1746116595674,2.79942,1858.9,1858.8,1.07554]
[1746116596576,1.07558,1858.8,1858.7,2.77309]
[1746116596771,2.79948,1858.8,1858.7,2.77309]
[1746116597071,2.79948,1858.8,1858.7,2.77314]
[1746116598576,2.79948,1858.8,1858.7,1.07564]
[1746116599875,2.79948,1858.8,1858.7,2.72474]
[1746116600177,5.69403,1859.1,1858.7,1.6491]
[1746116600471,2.77566,1858.9,1858.8,1.6491]
[1746116600665,1.07564,1858.8,1858.7,1.07561]
[1746116600873,2.77574,1858.8,1858.7,1.07561]
[1746116601177,1.7001,1858.8,1858.7,1.07561]
[1746116601374,1.07557,1858.9,1858.8,1.07558]
[1746116601574,5.69403,1859.1,1858.9,1.07552]
[1746116601575,1.6387,1859.0,1858.9,1.07552]
[1746116601878,4.11922,1859.3,1859.2,1.07535]
[1746116602064,1.07535,1859.2,1859.1,7.36836]
[1746116602270,1.6387,1859.2,1859.1,7.36836]
[1746116602779,4.18355,1859.5,1859.3,1.07529]
[1746116602780,6.42168379,1859.4,1859.3,1.07529]
[1746116603098,5.34640379,1859.4,1859.3,4.28309]
[1746116603585,5.34640379,1859.4,1859.3,5.92229]
[1746116604885,5.34640379,1859.4,1859.3,15.38789]
[1746116606492,5.34640379,1859.4,1859.3,10.38789]
[1746116608199,1.5725,1859.5,1859.4,1.07523]
[1746116608392,2.64768,1859.5,1859.4,2.64463]
[1746116608698,1.5725,1859.5,1859.4,2.64463]
[1746116608899,2.64768,1859.5,1859.4,2.64463]
[1746116610101,1.5725,1859.5,1859.4,2.64463]
[1746116610290,2.62061,1859.7,1859.6,1.07512]
[1746116610495,4.19311,1859.7,1859.6,1.07512]
[1746116610697,1.07512,1859.6,1859.5,7.31685]
[1746116610893,1.07518,1859.5,1859.4,2.51649]
[1746116611200,2.69896,1859.6,1859.5,1.07518]
[1746116611398,2.69896,1859.6,1859.5,2.73458]
[1746116611596,1.6238,1859.6,1859.5,2.73458]
[1746116611797,1.6238,1859.6,1859.5,5.94238]
[1746116611997,1.0751,1859.7,1859.6,1.07512]
[1746116612193,2.6989,1859.7,1859.6,2.73452]
[1746116612399,1.6238,1859.7,1859.6,8.64122]
[1746116612602,3.0402,1859.9,1859.8,1.075]
[1746116612803,1.6238,1859.9,1859.8,4.2828]
[1746116613001,1.6238,1859.9,1859.8,7.8738]
[1746116613303,3.56761231,1860.2,1860.1,1.07483]
[1746116613501,3.56761231,1860.2,1860.1,4.66583]
[1746116613704,4.64238231,1860.2,1860.1,4.66583]
[1746116614004,6.21008231,1860.2,1860.1,4.66583]
[1746116614704,6.21008231,1860.2,1860.1,6.38383]
[1746116615307,6.21008231,1860.2,1860.1,3.591]
[1746116615510,7.65238231,1860.2,1860.1,3.591]
[1746116616006,3.56761231,1860.2,1860.1,4.66583]
[1746116616199,3.56761231,1860.2,1860.1,7.94243]
[1746116616399,5.13531231,1860.2,1860.1,7.94243]
[1746116616601,2.64247,1860.2,1860.1,3.591]
[1746116616796,2.64247,1860.2,1860.1,4.66583]
[1746116618199,1.5677,1860.2,1860.1,4.66583]
[1746116618404,2.52634,1860.5,1860.4,1.07466]
[1746116618710,1.0747,1860.4,1860.3,1.07467]
[1746116619006,2.7349,1860.4,1860.3,1.07467]
[1746116620003,1.07471,1860.3,1860.2,5.82717]
[1746116620208,4.20581,1860.3,1860.2,5.82717]
[1746116620512,4.20581,1860.3,1860.2,4.28257]
[1746116621212,2.79651,1860.3,1860.2,5.85787]
[1746116621412,1.7218,1860.3,1860.2,5.85787]
[1746116621711,2.79651,1860.3,1860.2,5.85787]
[1746116622113,2.79651,1860.3,1860.2,4.28257]
[1746116622706,1.7218,1860.3,1860.2,5.85787]
[1746116622913,2.79651,1860.3,1860.2,5.85787]
[1746116623515,1.7218,1860.3,1860.2,5.85787]
[1746116623908,1.07469,1860.4,1860.3,1.07471]
[1746116624110,1.07469,1860.4,1860.3,4.06141]
[1746116624912,2.81309,1860.4,1860.3,4.06141]
[1746116625111,1.07457,1860.7,1860.6,1.0745]
[1746116625711,1.7384,1860.7,1860.6,4.2823]
[1746116626011,1.7384,1860.7,1860.6,5.6994]
[1746116626208,1.7384,1860.7,1860.6,7.2878]
[1746116626406,4.01475,1860.8,1860.7,1.07448]
[1746116626711,1.07448,1860.7,1860.6,5.69939]
[1746116626911,2.70458,1860.7,1860.6,5.69939]
[1746116627109,2.70458,1860.7,1860.6,3.2078]
[1746116627409,2.70458,1860.7,1860.6,4.28234]
[1746116628404,2.70458,1860.7,1860.6,3.2078]
[1746116628605,1.07454,1860.6,1860.5,4.66359]
[1746116628800,2.70464,1860.6,1860.5,3.589]
[1746116629010,1.07466,1860.4,1860.3,4.66366]
[1746116629212,4.26533,1860.5,1860.4,1.07466]
[1746116630112,1.07466,1860.4,1860.3,7.87147]
[1746116630315,4.24486,1860.4,1860.3,7.87147]
[1746116631014,4.24486,1860.4,1860.3,6.7968]
[1746116631214,4.24486,1860.4,1860.3,7.87151]
[1746116631509,1.07457,1860.6,1860.5,1.07454]
[1746116631817,2.52354,1860.6,1860.5,4.28234]
[1746116632117,1.449,1860.6,1860.5,4.28234]
[1746116632611,1.07449,1860.8,1860.5,3.2078]
[1746116632809,2.69989,1860.8,1860.7,1.07444]
[1746116633702,1.6254,1860.8,1860.7,2.55344]
[1746116633911,2.69983,1860.8,1860.7,4.16284]
[1746116634218,2.69983,1860.8,1860.7,7.37064]
[1746116635208,2.69983,1860.8,1860.7,4.28224]
[1746116635413,2.69983,1860.8,1860.7,3.2078]
[1746116635611,2.69983,1860.8,1860.7,4.28228]
[1746116635815,2.69983,1860.8,1860.7,3.2078]
[1746116636014,2.69983,1860.8,1860.7,4.28228]
[1746116636220,1.07448,1860.7,1860.6,3.589]
[1746116636413,1.07454,1860.6,1860.5,1.07459]
[1746116636614,2.50444,1860.6,1860.5,1.07459]
[1746116637119,2.50444,1860.6,1860.5,2.62169]
[1746116637312,2.67301,1860.7,1860.6,1.07454]
[1746116637618,2.67301,1860.7,1860.6,5.95804]
[1746116639221,2.67301,1860.7,1860.6,3.2078]
[1746116639422,1.07454,1860.6,1860.5,2.62168]
[1746116639719,1.0746,1860.5,1860.4,6.7968]
[1746116639914,2.558,1860.5,1860.4,7.87146]
[1746116640115,4.2027,1860.5,1860.4,7.87146]
[1746116640517,4.2027,1860.5,1860.4,9.59596]
[1746116641524,4.2027,1860.5,1860.4,6.7968]
[1746116641723,4.2027,1860.5,1860.4,7.87146]
[1746116642921,4.2027,1860.5,1860.4,6.7968]
[1746116643121,4.2027,1860.5,1860.4,7.87146]
[1746116643322,4.2027,1860.5,1860.4,6.7968]
[1746116643523,4.2027,1860.5,1860.4,7.87146]
[1746116643918,4.2027,1860.5,1860.4,3.2078]
[1746116644329,4.2027,1860.5,1860.4,4.28246]
[1746116646226,4.2027,1860.5,1860.4,7.42986]
[1746116646634,2.68593,1860.9,1860.7,1.07443]
[1746116646926,2.74266,1860.8,1860.7,1.07443]
[1746116647120,2.74266,1860.8,1860.7,4.11653]
[1746116648122,1.5004,1860.9,1860.7,4.11653]
[1746116648322,1.07443,1860.9,1860.8,1.07443]
[1746116648528,1.07443,1860.8,1860.7,4.11655]
[1746116648825,2.77053,1860.8,1860.7,4.11655]
[1746116649329,1.07448,1860.7,1860.6,4.2823]
[1746116649526,2.77058,1860.7,1860.6,4.2823]
[1746116649727,1.07445,1860.8,1860.7,1.07441]
[1746116650127,1.07445,1860.8,1860.7,2.75911]
[1746116651736,1.07454,1860.7,1860.5,5.1196]
[1746116651928,2.67544,1860.7,1860.6,4.2823]
[1746116652127,2.67544,1860.7,1860.6,5.967]
[1746116656039,1.6009,1860.7,1860.6,5.967]
[1746116656435,2.67538,1860.7,1860.6,5.967]
[1746116658841,1.6009,1860.7,1860.6,5.967]
[1746116659041,2.67538,1860.7,1860.6,5.967]
[1746116660647,2.67538,1860.7,1860.6,4.2823]
[1746116661849,2.67538,1860.7,1860.6,3.2078]
[1746116662345,1.07454,1860.6,1860.5,3.587]
[1746116662546,1.07466,1860.4,1860.3,10.38255255]
[1746116662948,1.07466,1860.4,1860.3,7.17475255]
[1746116663350,7.72906,1860.4,1860.3,7.17475255]
[1746116665049,2.72906,1860.4,1860.3,7.17475255]
[1746116665241,7.72906,1860.4,1860.3,7.17475255]
[1746116666253,1.07477,1860.2,1860.1,3.2078]
[1746116667545,3.97697,1860.2,1860.1,3.2078]
[1746116667945,3.97697,1860.2,1859.9,3.2078]
[1746116667946,1.07489,1860.0,1859.9,3.2078]
[1746116668147,1.07495,1859.9,1859.8,1.51352]
[1746116669154,5.69575,1859.9,1859.8,1.51352]
[1746116669348,2.48795,1859.9,1859.8,1.51352]
[1746116671456,1.07495,1859.9,1859.8,1.51352]
[1746116671752,1.07495,1859.9,1859.8,2.97782]
[1746116672147,2.67885,1859.9,1859.8,1.51352]
[1746116674251,1.6039,1859.9,1859.8,2.58852]
[1746116674549,1.07494,1860.0,1859.9,1.07495]
[1746116674750,2.73354,1860.0,1859.9,4.17035]
[1746116675250,2.73354,1860.0,1859.9,5.54115]
[1746116676254,2.73354,1860.0,1859.9,4.4662]
[1746116676651,2.73354,1860.0,1859.9,2.8236]
[1746116676855,2.73354,1860.0,1859.9,1.4528]
[1746116677455,2.73354,1860.0,1859.8,5.09952]
[1746116677456,1.07495,1859.9,1859.8,5.09952]
[1746116677655,4.18665,1859.9,1859.8,5.09952]
[1746116678150,4.18665,1859.9,1859.8,1.51352]
[1746116687758,1.07495,1859.9,1859.8,1.51352]
[1746116687959,1.07495,1859.9,1859.8,2.58852]
[1746116688157,1.07495,1859.9,1859.8,5.79632]
[1746116688361,1.07492,1860.0,1859.9,1.07489]
[1746116688561,1.07492,1860.0,1859.9,5.60079]
[1746116689466,1.07486,1860.1,1860.0,1.07483]
[1746116689667,1.07481,1860.2,1860.1,1.07477]
[1746116690062,1.07474,1860.3,1860.2,1.07471]
[1746116690362,1.07474,1860.3,1860.2,2.73191]
[1746116690865,1.07474,1860.3,1860.2,1.6572]
[1746116691167,1.07474,1860.3,1860.2,3.72687]
[1746116692969,1.07474,1860.3,1860.2,2.6521]
[1746116695161,2.14054,1860.3,1860.2,0.9949]
[1746116695662,3.82374,1860.3,1860.2,0.9949]
[1746116696371,3.82374,1860.3,1860.2,2.06967]
[1746116696870,3.82374,1860.3,1860.2,2.7]
[1746116697071,3.82374,1860.3,1860.2,3.77477]
[1746116697262,3.82374,1860.3,1860.2,2.7]
[1746116697864,3.82374,1860.3,1860.2,3.77477]
[1746116698066,2.75794,1860.3,1860.2,3.77477]
[1746116698971,2.75794,1860.3,1860.2,2.7]
[1746116699672,2.75794,1860.3,1860.2,3.77477]
[1746116700368,1.07474,1860.3,1860.2,6.98257]
[1746116701658,1.07474,1860.3,1860.2,4.2027]
[1746116701863,2.04744,1860.3,1860.2,4.2027]
[1746116702072,1.07477,1860.2,1860.1,3.586]
[1746116702271,2.72197,1860.2,1860.1,3.586]